Cogmind - Beta 14 @@@ ROGUE MODE // 2024.09.03 @ 15:00:16 Player: Minty Result: Destroyed by Y-54 Guardian via exploding Power Conduit Performance ------------- Evolutions (4) 2000 Regions Visited (15) 3000 Robots Destroyed (154) 770 Value Destroyed (8850) 8850 Prototype IDs (34) 680 Alien Tech Used (0) 0 Bonus (5445) 5445 TOTAL SCORE: 20745 Bonus ------- High Alert Combat Kills 1208 Follower Combat Kills 1423 Entered Garrisons 800 Used RIF Installer 2000 Aligned with FarCom 300 Friendly Fire -286 Cogmind --------- Core Integrity 0/850 Matter 181/300 Energy 24/100 System Corruption 6% Temperature Cool (12) Movement Core (50) Location -6/Factory Parts ------- > --- POWER (1) -------- (None) > --- PROPULSION (3) --- (None) > --- UTILITY (7) ------ Improved Hacking Suite > --- WEAPON (4) ------- (None) > --- INVENTORY (5) ---- Improved Particle Charger Thermal Defense Suite Improved Hacking Suite Authchip [R/Combat] Proton Cannon Peak State ------------ > --- POWER ------------ Particle Reactor > --- PROPULSION ------- Biometal Medium Treads Improved Heavy Siege Treads > --- UTILITY ---------- Advanced Cooling System Huge Storage Unit Improved Light Armor Plating Thermal Defense Suite Improved Remote Force Field Antimissile System Relay Coupler [Sentry] > --- WEAPON ----------- Quantum Rifle Compact HERF Cannon Nova Cannon Remote Datajack > --- INVENTORY -------- Angular Momentum Engine Particle Reactor Biometal Medium Treads Improved Heat Sink Advanced Cooling System Gravity Neutralizer Improved Sensor Array Improved Signal Interpreter Advanced Terrain Scanner Advanced Terrain Scan Processor Improved Particle Charger Improved Particle Charger Advanced ECM Suite Thermal Defense Suite Force Field Improved Hacking Suite Improved Hacking Suite Authchip [R/Combat] Relay Coupler [Heavy] Force Rifle Quantum Rifle Proton Cannon YOLO Cannon Remote Datajack [Rating: 109] Favorites ----------- Power Deuterium Engine Engine Deuterium Engine Power Core Micro Nuclear Core Reactor Particle Reactor Propulsion Wheel Treads Biometal Medium Treads Leg Improved Carbon-fiber Leg Wheel Wheel Hover Unit Gravmag System Flight Unit VTOL Module Utility Advanced Heat Sink Device Advanced Heat Sink Storage High-capacity Storage Unit Processor Improved Signal Interpreter Hackware Relay Coupler [Sentry] Protection Insulated Plating Weapon Improved Spread Laser Energy Gun Improved Spread Laser Energy Cannon Heavy Particle Cannon Ballistic Gun Heavy Assault Rifle Launcher Grenade Launcher Special Weapon Remote Datajack Special Melee Weapon Improved Datajack Build | -11 -10 -10 -10 -9 -8 -8 -8 -8 -7 -7 -7 -7 -6 -6 -6 ------- Run | Yrd Mat Min Exi Min Mat Gar Mat Gar Fac Was Fac Gar Fac Gar Fac Slots Evolved 8 | . . . . . 4 . . . 2 . . . 2 . . Power . | . . . . . . . . . . . . . . . . Propulsion 1 | . . . . . . . . . 1 . . . . . . Utility 5 | . . . . . 2 . . . 1 . . . 2 . . Weapon 2 | . . . . . 2 . . . . . . . . . . Parts Attached 248 | . 13 2 4 4 8 25 27 5 4 2 17 47 35 23 32 Power 20 | . 1 . . . . 2 . 1 2 . 1 5 1 2 5 Engine 8 | . 1 . . . . 2 . 1 1 . 1 . 1 1 . Core 7 | . . . . . . . . . 1 . . 5 . . 1 Reactor 5 | . . . . . . . . . . . . . . 1 4 Propulsion 43 | . 3 . 1 . 1 1 10 1 1 . 3 9 7 2 4 Treads 6 | . . . . . . . 1 . . . . . . 2 3 Leg 16 | . . . . . . . 4 1 1 . 3 5 1 . 1 Wheel 17 | . 3 . 1 . 1 1 5 . . . . . 6 . . Hover 1 | . . . . . . . . . . . . 1 . . . Flight 3 | . . . . . . . . . . . . 3 . . . Utility 85 | . 5 2 1 2 3 10 5 3 1 1 5 14 14 8 11 Device 44 | . 1 2 . 1 . 6 2 3 1 . 3 3 11 7 4 Storage 8 | . 2 . 1 . 2 . . . . . . . 1 . 2 Processor 5 | . 1 . . . . . 1 . . . 1 1 1 . . Hackware 18 | . . . . . . 1 1 . . 1 1 10 . . 4 Protection 10 | . 1 . . 1 1 3 1 . . . . . 1 1 1 Artifact . | . . . . . . . . . . . . . . . . Weapon 100 | . 4 . 2 2 4 12 12 . . 1 8 19 13 11 12 Energy Gun 42 | . 1 . . . . 5 10 . . . 2 11 3 6 4 Energy Cannon 22 | . . . . 1 1 3 . . . 1 5 1 3 2 5 Ballistic Gun 12 | . . . . . . 3 2 . . . . 1 5 1 . Ballistic Cannon . | . . . . . . . . . . . . . . . . Launcher 10 | . 3 . 2 1 3 1 . . . . . . . . . Special Weapon 9 | . . . . . . . . . . . . 2 2 2 3 Impact Weapon . | . . . . . . . . . . . . . . . . Slashing Weapon . | . . . . . . . . . . . . . . . . Piercing Weapon . | . . . . . . . . . . . . . . . . Special Melee Weapon 5 | . . . . . . . . . . . 1 4 . . . Unidentified Prototypes 10 | . . 1 . . . . 2 . 1 1 . . 3 . 2 Parts Lost 46 | . 1 . . . 3 8 . . . 2 . 10 3 4 15 Power 3 | . . . . . . . . . . . . 1 . . 2 Propulsion 15 | . . . . . 1 1 . . . 1 . 6 1 1 4 Utility 15 | . 1 . . . 1 4 . . . 1 . 2 1 1 4 Weapon 13 | . . . . . 1 3 . . . . . 1 1 2 5 Highest Loss Streak 12 | . 1 . . . 3 7 . . . 2 . 7 1 2 12 To Critical Strikes . | . . . . . . . . . . . . . . . . Average Slot Usage (%) 89 | . 98 100 91 100 97 79 97 100 100 70 72 85 96 86 76 Engine 6 | . 14 14 14 14 9 9 9 9 7 5 4 . 4 4 . Treads 1 | . . . . . . . . . . . . . . 3 9 Leg 6 | . 11 . . . . . 6 18 23 20 16 14 4 . 1 Wheel 8 | . 16 28 28 28 16 13 10 . . . . . 12 5 . Device 13 | . 4 14 14 3 . 12 15 18 23 20 20 8 11 20 11 Storage 7 | . 14 14 14 14 26 9 9 9 7 4 . . 5 6 10 Processor 1 | . . . . . . . 2 9 7 7 7 1 . . . Hackware 9 | . . . . . . . 3 . . 1 5 24 24 15 11 Protection 3 | . 7 . . 10 9 11 5 . . . . . 1 2 4 Energy Gun 14 | . 5 . . . . 7 25 36 30 8 2 11 15 9 12 Energy Cannon 1 | . . . . 1 . . . . . . 11 4 1 2 5 Ballistic Gun 5 | . 5 . . . . 15 10 . . . . . 9 9 . Launcher 3 | . 16 28 19 26 34 . . . . . . . . . . Peak Build Rating 109 | . 8 14 12 20 25 45 50 53 56 54 48 60 70 109 107 Average Rating 45 | . 7 8 10 13 18 26 39 48 53 36 35 44 64 74 85 On Entrance 34 | 6 6 8 8 12 13 19 26 50 46 54 25 47 60 67 107 Naked Turns . | . . . . . . . . . . . . . . . . Heaviest Build 153 | 13 24 22 52 58 69 69 67 72 64 64 34 34 119 153 148 Greatest Support 110 | 20 20 20 20 20 20 20 36 36 54 54 53 52 53 110 110 Greatest Overweight (x) 7 | . 2 1 2 2 6 6 6 1 1 1 . 3 4 7 5 Average Overweight (x) 1 | . . 1 . 2 3 4 2 1 1 . . . 2 5 1 Largest Inventory Capacity 25 | . 10 10 20 20 20 20 20 20 20 20 5 5 25 25 25 Average Capacity 18 | . 9 10 13 20 20 20 20 20 20 14 5 5 24 25 24 Most Carried 25 | . 10 10 11 11 16 20 20 20 20 20 5 5 25 25 25 Average Carried 17 | . 8 10 10 11 12 19 19 19 18 14 4 4 20 24 24 Final Capacity 25 | 8 10 10 20 20 20 20 20 20 20 5 5 5 25 25 5 Final Carried 25 | 6 10 10 11 11 15 20 20 20 20 5 5 5 25 25 5 Class Distribution -------------------- 18% | Mutant 17% | Trapper-Skirmisher 13% | Bothacker-Tank 13% | Scavenger-Skirmisher 11% | Bothacker-Gunner 4% | Scavenger-Tank 4% | Skirmisher 4% | Scavenger-Mutant 3% | Bothacker-Mutant 3% | Bothacker-Skirmisher Dominant Class ---------------- Mutant | -10/Materials Mutant | -10/Mines Mutant | -10/Exiles Mutant | -9/Mines Skirmisher | -8/Materials Scavenger-Skirmisher | -8/Garrison Scavenger-Skirmisher | -8/Materials Trapper-Skirmisher | -8/Garrison Trapper-Skirmisher | -7/Factory Trapper-Mutant | -7/Waste Skirmisher | -7/Factory Bothacker-Gunner | -7/Garrison Bothacker-Gunner | -6/Factory Bothacker-Tank | -6/Garrison Bothacker-Tank | -6/Factory Resources | -11 -10 -10 -10 -9 -8 -8 -8 -8 -7 -7 -7 -7 -6 -6 -6 ----------- Run | Yrd Mat Min Exi Min Mat Gar Mat Gar Fac Was Fac Gar Fac Gar Fac Matter Collected 4232 | 200 278 60 326 60 69 666 381 111 . . 217 436 600 598 230 Remotely . | . . . . . . . . . . . . . . . . Salvage Created 6679 | . 695 . . 86 163 1089 347 649 . . 232 778 1059 418 1163 Parts 337 | . 46 . . 5 11 55 21 33 . . 12 33 53 14 54 Haulers Intercepted 7 | . 2 . . . . . . . . . . . 2 1 2 Recyclers Shooed 4 | . . . . . . . . . . . 2 . 1 . 1 Parts Field Recycled . | . . . . . . . . . . . . . . . . Retrieved Matter . | . . . . . . . . . . . . . . . . Parts Self-Destructed . | . . . . . . . . . . . . . . . . Prevented . | . . . . . . . . . . . . . . . . Kills | -11 -10 -10 -10 -9 -8 -8 -8 -8 -7 -7 -7 -7 -6 -6 -6 ------- Run | Yrd Mat Min Exi Min Mat Gar Mat Gar Fac Was Fac Gar Fac Gar Fac Combat Hostiles Destroyed 115 | . 13 . . 2 6 25 4 12 . . 6 18 9 5 15 Melee 1 | . . . . . . . . . . . . . . . 1 Guns 65 | . 5 . . . . 15 4 12 . . 3 10 7 5 4 Cannons 20 | . . . . 1 1 3 . . . . 3 7 2 . 3 AOE 25 | . 8 . . 1 5 6 . . . . . . . . 5 Classes Destroyed 19 | . 10 . . 1 . 2 . 2 . . . 1 . . 3 Worker 9 | . 2 . . . 1 . 2 . . . . . 3 . 1 Builder 2 | . 1 . . . . . . . . . . . . . 1 Tunneler 3 | . 3 . . . . . . . . . . . . . . Hauler 7 | . 2 . . . . . . . . . . . 2 1 2 Recycler 5 | . 2 . . . . . 1 . . . . . 2 . . Mechanic 2 | . 1 . . . . . . . . . . . . . 1 Operator 4 | . 2 . . . 1 . . . . . . . . . 1 Watcher 6 | . 2 . . . . . . . . . . . 2 . 2 Swarmer 19 | . 3 . . . . 4 . . . . 1 4 3 3 1 Saboteur 1 | . . . . . . . . . . . . . . . 1 Grunt 52 | . 10 . . . 3 13 2 4 . . 3 10 . . 7 Brawler 3 | . . . . . . . . 2 . . . . . . 1 Duelist 2 | . . . . . . 1 . . . . . . . . 1 Sentry 23 | . . . . 2 3 4 2 5 . . 1 . 4 2 . Specialist 1 | . . . . . . . . . . . . 1 . . . Hunter 5 | . . . . . . . . 1 . . . 1 1 . 2 Programmer 8 | . . . . . . 3 . . . . 1 2 1 . 1 Heavy 1 | . . . . . . . . . . . . . . . 1 Behemoth 1 | . . . . . . . . . . . . . . . 1 Best Kill Streak 10 | . 10 . . 2 4 9 4 2 . . 3 4 5 3 10 Combat Bots Only 9 | . 5 . . 2 3 9 3 2 . . 3 4 3 3 7 Max Kills in Single Turn 4 | . 3 . . 1 2 4 2 1 . . 1 1 2 1 4 Gunslinging 1 | . . . . . . 1 . . . . . . 1 . . Exploded 3 | . 3 . . 1 2 3 . . . . . . . . 2 Melee 1 | . . . . . . . . . . . . . . . 1 Uniques/NPCs Destroyed . | . . . . . . . . . . . . . . . . Combat | -11 -10 -10 -10 -9 -8 -8 -8 -8 -7 -7 -7 -7 -6 -6 -6 -------- Run | Yrd Mat Min Exi Min Mat Gar Mat Gar Fac Was Fac Gar Fac Gar Fac Hostile Shots Fired 749 | . 44 . . 6 21 77 6 25 . 1 57 145 100 87 180 Missed 237 | . 14 . . 2 5 24 1 7 . . 23 44 45 24 48 Damage Taken 9030 | . 394 . . 72 445 857 85 353 . 166 486 1543 845 689 3095 Core 1986 | . 78 . . 14 63 126 51 201 . 71 64 418 229 36 635 Absorbed by Shields 189 | . . . . . . 12 . . . . . 89 . 88 . Redirected to Shielding 122 | . . . . . . . . . . . . . . . 122 Ignored by Resistances 108 | . . . . . . 54 . . . . . . . 54 . Regen/Repaired (Parts) 19 | . . . . . . . 19 . . . . . . . . Core Remaining (%) 50 | 100 . . . 63 . . . 19 . . . 21 . . . Volleys Fired 341 | . 31 . . 3 6 66 12 36 . . 12 46 42 31 56 Largest 4 | . 2 . . 2 4 4 4 4 . . 4 4 4 4 4 Hottest 395 | . 60 . . 120 120 158 280 280 . . 300 337 323 395 395 Shots Fired 914 | . 61 . . 4 21 167 42 129 . . 35 116 139 79 121 Gun 709 | . 33 . . . . 144 42 129 . . 12 77 128 65 79 Cannon 119 | . . . . 2 1 6 . . . . 23 36 9 5 37 Launcher 67 | . 28 . . 2 20 17 . . . . . . . . . Special 19 | . . . . . . . . . . . . 3 2 9 5 Kinetic 249 | . 19 . . . . 89 19 . . . . . 79 43 . Thermal 548 | . . . . 2 1 61 23 129 . . 35 113 49 25 110 Explosive 67 | . 28 . . 2 20 17 . . . . . . . . . Electromagnetic 31 | . 14 . . . . . . . . . . . 9 2 6 Robot Hit Streak 15 | . 8 . . 6 4 12 12 10 . . 8 9 15 7 11 Robot Miss Streak 9 | . 3 . . 1 1 3 2 4 . . 4 9 4 4 4 Penetration Max 1 | . . . . . . . . . . . . . 1 1 . Secondary Targets 9 | . 2 . . . . 2 . 2 . . . . 2 1 . Max Gunslinging Chain 1 | . 1 . . . . 1 . 1 . . . . 1 1 . Autonomous 41 | . . . . . . 9 . . . . 3 29 . . . Shots Hit Robots 548 | . 34 . . 3 11 108 24 62 . . 34 80 76 47 69 Core Hits 328 | . 45 . . 4 21 51 14 52 . . 16 41 33 20 31 Critical Kills 8 | . . . . . . 1 . . . . . 1 1 1 4 Critical Parts Destroyed 8 | . . . . . . . . . . . . . 5 3 . Critical Strikes 22 | . 1 . . . . 2 1 2 . . . 2 6 4 4 Burn 5 | . . . . . . 1 1 2 . . . 1 . . . Meltdown 4 | . . . . . . 1 . . . . . 1 . . 2 Destroy 12 | . . . . . . . . . . . . . 6 4 2 Corrupt 1 | . 1 . . . . . . . . . . . . . . Melee Attacks 16 | . . . . . . . . . . . 12 4 . . . Impact . | . . . . . . . . . . . . . . . . Slashing . | . . . . . . . . . . . . . . . . Piercing . | . . . . . . . . . . . . . . . . Sneak Attacks . | . . . . . . . . . . . . . . . . Combat Hostiles . | . . . . . . . . . . . . . . . . Follow-up Attacks . | . . . . . . . . . . . . . . . . Damage Inflicted 15276 | . 1465 . . 104 583 2649 405 1406 . . 688 1900 1537 751 3788 Guns 8498 | . 234 . . . . 1466 405 1406 . . 299 1377 1416 674 1221 Cannons 3150 | . . . . 68 40 431 . . . . 389 523 120 77 1502 Explosions 3595 | . 1225 . . 36 543 752 . . . . . . . . 1039 Melee . | . . . . . . . . . . . . . . . . Ramming 33 | . 6 . . . . . . . . . . . 1 . 26 Kinetic 2160 | . 108 . . . . 838 176 . . . . . 593 445 . Thermal 10683 | . 186 . . 68 40 1430 229 1406 . . 688 1900 823 269 3644 Explosive 1999 | . 1039 . . 36 543 381 . . . . . . . . . Electromagnetic 401 | . 126 . . . . . . . . . . . 120 37 118 Impact . | . . . . . . . . . . . . . . . . Slashing . | . . . . . . . . . . . . . . . . Piercing . | . . . . . . . . . . . . . . . . Highest Corruption 8 | . 1 1 1 1 6 7 7 8 . . 3 4 1 1 6 Average Corruption 4 | . 1 1 1 1 6 6 7 7 . . 2 3 1 1 4 Corruption Purged . | . . . . . . . . . . . . . . . . Corruption Blocked . | . . . . . . . . . . . . . . . . Effects 170 | . 1 2 3 . 1 42 27 38 . . 4 18 3 4 27 Message Errors 43 | . . 1 1 . 1 9 4 9 . . 2 5 1 2 8 Matter Fused 35 | . . . 1 . . 11 8 8 . . . 3 . . 4 Heat Flow Errors 19 | . . . . . . 4 7 5 . . . 1 . . 2 Energy Discharges 21 | . . . . . . 6 1 6 . . . 4 1 . 3 Parts Rejected 1 | . . . . . . . . . . . . . . . 1 Parts Fused 2 | . . . . . . 1 . 1 . . . . . . . Data Loss (minor) 19 | . 1 . 1 . . 5 6 1 . . . 2 . . 3 Data Loss (major) 11 | . . 1 . . . 3 . 2 . . 1 2 1 1 . Misfires 8 | . . . . . . 1 1 3 . . . 1 . . 2 Alerts 3 | . . . . . . 1 . 1 . . . . . . 1 Weapon Failures 8 | . . . . . . 1 . 2 . . 1 . . 1 3 Overload Shots . | . . . . . . . . . . . . . . . . Overflow Damage 487 | . 106 . . . . 125 . . . . . 7 . . 249 Projectiles 273 | . . . . . . 125 . . . . . 7 . . 141 Explosions 214 | . 106 . . . . . . . . . . . . . 108 Melee . | . . . . . . . . . . . . . . . . Knockbacks 1 | . . . . . . . . . . . . . 1 . . Impact 1 | . . . . . . . . . . . . . 1 . . Kinetic . | . . . . . . . . . . . . . . . . Secondary . | . . . . . . . . . . . . . . . . Self-Inflicted Damage 227 | . 44 . . 17 56 36 . . . . . 36 . . 38 Shots 10 | . 2 . . 1 3 2 . . . . . 1 . . 1 Rammed 4 | . 1 . . . . . . . . . . . 1 . 2 Targets Rammed 4 | . 1 . . . . . . . . . . . 1 . 2 Kicked . | . . . . . . . . . . . . . . . . Crushed . | . . . . . . . . . . . . . . . . Highest Temperature 575 | . 163 . . 160 143 269 237 575 . . 335 354 323 222 398 Average Temperature 104 | . 41 . . 80 61 68 82 184 . . 131 89 112 68 113 Received Heat Transfer 1646 | . 183 . . 9 90 252 36 90 . . 156 280 78 123 349 Effects 22 | . . . . . . 3 . 15 . . . . . . 4 Shutdowns 4 | . . . . . . . . 3 . . . . . . 1 Energy Bleed 3 | . . . . . . . . 2 . . . . . . 1 Interference 11 | . . . . . . 3 . 6 . . . . . . 2 Short Circuit 1 | . . . . . . . . 1 . . . . . . . Damage (minor) 2 | . . . . . . . . 2 . . . . . . . Damage (core) 1 | . . . . . . . . 1 . . . . . . . Siege Activations . | . . . . . . . . . . . . . . . . Robots Corrupted . | . . . . . . . . . . . . . . . . Combat Hostiles . | . . . . . . . . . . . . . . . . Parts Fried 1 | . 1 . . . . . . . . . . . . . . Impact Corruptions . | . . . . . . . . . . . . . . . . Robots Melted 4 | . . . . . . 1 . . . . . 1 . . 2 Combat Hostiles 4 | . . . . . . 1 . . . . . 1 . . 2 Parts Melted 25 | . . . . . . 3 . 2 . . 1 4 3 3 9 Heat Transferred 14085 | . 100 . . 160 80 2329 543 2021 . . 826 2402 1297 384 3943 Parts Sabotaged 4 | . . . . . . . . . . . . . . . 4 Parts Stolen . | . . . . . . . . . . . . . . . . Parts Stripped . | . . . . . . . . . . . . . . . . Power Chain Reactions . | . . . . . . . . . . . . . . . . Alert | -11 -10 -10 -10 -9 -8 -8 -8 -8 -7 -7 -7 -7 -6 -6 -6 ------- Run | Yrd Mat Min Exi Min Mat Gar Mat Gar Fac Was Fac Gar Fac Gar Fac Peak Influence 1219 | . 627 221 . 70 322 1219 773 1148 602 255 387 1117 729 802 681 Initial 602 | . . 221 . . 27 196 594 326 602 210 150 270 585 371 420 Average 607 | . 336 221 . 61 183 753 641 747 602 226 243 757 597 583 556 Maximum Alert Level 4 | . 2 1 . . 1 4 3 4 2 1 1 4 3 3 2 Low Security (%) 5 | . 35 . . 100 52 . . . . . 37 . . . . Level 1 13 | . 5 100 . . 47 19 . 10 . 100 62 17 . 5 . Level 2 49 | . 59 . . . . 26 69 24 100 . . 13 97 58 100 Level 3 26 | . . . . . . 32 30 63 . . . 59 2 35 . Level 4 4 | . . . . . . 21 . . . . . 9 . . . Level 5 . | . . . . . . . . . . . . . . . . High Security . | . . . . . . . . . . . . . . . . Max Security . | . . . . . . . . . . . . . . . . Squads Dispatched 25 | . 3 . . . 3 . 2 . . . 2 . 7 . 8 Investigation 6 | . 1 . . . . . 2 . . . . . 3 . . Extermination 2 | . . . . . . . . . . . . . 1 . 1 Reinforcement 10 | . 2 . . . 1 . . . . . . . 2 . 5 Assault 2 | . . . . . . . . . . . . . . . 2 Garrison 5 | . . . . . 2 . . . . . 2 . 1 . . Intercept . | . . . . . . . . . . . . . . . . Searches Triggered . | . . . . . . . . . . . . . . . . Construction Impeded 2 | . . . . . . . . . . . . . 1 . 1 Haulers Reinforced 3 | . . . . . . . . . . . . . 1 . 2 Active Scanning Responses . | . . . . . . . . . . . . . . . . Cargo Convoy Interrupts . | . . . . . . . . . . . . . . . . Stealth | -11 -10 -10 -10 -9 -8 -8 -8 -8 -7 -7 -7 -7 -6 -6 -6 --------- Run | Yrd Mat Min Exi Min Mat Gar Mat Gar Fac Was Fac Gar Fac Gar Fac Distress Signals 6 | . 2 . . . . . . . . . 2 . . . 2 Communications Jammed . | . . . . . . . . . . . . . . . . Distress Signals . | . . . . . . . . . . . . . . . . Times Spotted 204 | . 19 . . 2 9 27 7 14 . 6 13 24 15 22 46 Peak Tracking Total 8 | . 5 . . 2 3 7 2 3 . 6 4 4 2 4 8 Tactical Retreats 11 | . 1 . . . . 2 1 . . . 2 1 . . 4 Traps | -11 -10 -10 -10 -9 -8 -8 -8 -8 -7 -7 -7 -7 -6 -6 -6 ------- Run | Yrd Mat Min Exi Min Mat Gar Mat Gar Fac Was Fac Gar Fac Gar Fac Traps Triggered 25 | . 1 . . . . 10 . 3 1 . . 7 1 . 2 Indirectly . | . . . . . . . . . . . . . . . . Trap Hack Attempts 1 | . . . . . . . . . . . . 1 . . . Triggered . | . . . . . . . . . . . . . . . . Disarmed . | . . . . . . . . . . . . . . . . Reprogrammed 7 | . 6 . . . . . . . . . . 1 . . . Reused 3 | . 1 . . . . . 1 . . 1 . . . . . Traps Extracted . | . . . . . . . . . . . . . . . . Installed 4 | . . . . . . 2 1 . . 1 . . . . . Triggered 2 | . 1 . . . . . 1 . . . . . . . . Most Traps Carried 8 | . . . . . . 8 8 7 7 7 . . . . . Machines | -11 -10 -10 -10 -9 -8 -8 -8 -8 -7 -7 -7 -7 -6 -6 -6 ---------- Run | Yrd Mat Min Exi Min Mat Gar Mat Gar Fac Was Fac Gar Fac Gar Fac Machines Disabled 45 | . 7 . . 1 1 9 1 7 . . . 8 5 2 4 Max in Single Turn 4 | . 4 . . 1 1 3 1 2 . . . 2 2 1 1 Garrison Relay 14 | . . . . . . 4 . 4 . . . 5 . 1 . Phase Generator 2 | . . . . . . . . 1 . . . 1 . . . Machines Repaired . | . . . . . . . . . . . . . . . . Machines Dismantled . | . . . . . . . . . . . . . . . . Machines Sabotaged . | . . . . . . . . . . . . . . . . Overloaded Fab Kills . | . . . . . . . . . . . . . . . . Hacking | -11 -10 -10 -10 -9 -8 -8 -8 -8 -7 -7 -7 -7 -6 -6 -6 --------- Run | Yrd Mat Min Exi Min Mat Gar Mat Gar Fac Was Fac Gar Fac Gar Fac Machines Accessed 37 | . 5 1 2 . 1 3 7 4 . . 1 2 6 2 3 Terminals 22 | . 4 . . . . 3 4 4 . . . 2 1 2 2 Fabricators 3 | . . . . . . . . . . . . . 2 . 1 Repair Stations 1 | . . . . . . . 1 . . . . . . . . Recycling Units 2 | . 1 . . . . . . . . . . . 1 . . Scanalyzers 1 | . . . . . . . 1 . . . . . . . . Garrison Access 5 | . . . . . 1 . 1 . . . 1 . 2 . . Total Hacks 92 | . 18 1 2 . 2 5 21 8 . . 1 7 15 4 8 Successful 43 | . 11 1 2 . 1 1 8 2 . . 1 1 10 2 3 Failed 49 | . 7 . . . 1 4 13 6 . . . 6 5 2 5 Catastrophic 12 | . 1 . . . . 2 3 2 . . . 3 1 . . Database Lockouts . | . . . . . . . . . . . . . . . . Manual 38 | . 11 . 1 . . . 14 2 . . . . 5 1 4 Terminals 57 | . 14 . . . . 5 13 8 . . . 7 2 4 4 Fabricators 11 | . . . . . . . . . . . . . 7 . 4 Repair Stations 2 | . . . . . . . 2 . . . . . . . . Recycling Units 7 | . 4 . . . . . . . . . . . 3 . . Scanalyzers 3 | . . . . . . . 3 . . . . . . . . Garrison Access 9 | . . . . . 2 . 3 . . . 1 . 3 . . Terminal Hacks 17 | . 5 1 2 . . 1 1 2 . . . 1 2 2 . Record 1 | . . . 1 . . . . . . . . . . . . Open Door 4 | . . 1 . . . . . 1 . . . 1 . 1 . Branch Access Points 1 | . . . . . . . . . . . . . 1 . . Emergency Access Points 1 | . . . . . . 1 . . . . . . . . . Terminal Index 1 | . 1 . . . . . . . . . . . . . . Alert Level 1 | . . . . . . . . . . . . . 1 . . Locate Traps 3 | . 2 . . . . . 1 . . . . . . . . Reprogram Traps 1 | . 1 . . . . . . . . . . . . . . Maintenance Status 1 | . 1 . . . . . . . . . . . . . . Garrison Registry 1 | . . . . . . . . 1 . . . . . . . Patrol Navigation 1 | . . . . . . . . . . . . . . 1 . Derelict Proto ID Bank 1 | . . . 1 . . . . . . . . . . . . Fabricator Hacks 3 | . . . . . . . . . . . . . 2 . 1 Network Status 3 | . . . . . . . . . . . . . 2 . 1 Repair Station Hacks 2 | . . . . . . . 2 . . . . . . . . Scan Component 1 | . . . . . . . 1 . . . . . . . . Repair 1 | . . . . . . . 1 . . . . . . . . Recycling Unit Hacks 5 | . 3 . . . . . . . . . . . 2 . . Process 1 | . 1 . . . . . . . . . . . . . . Report Inventory 1 | . . . . . . . . . . . . . 1 . . Retrieve Matter 2 | . 2 . . . . . . . . . . . . . . Retrieve Components 1 | . . . . . . . . . . . . . 1 . . Scanalyzer 2 | . . . . . . . 2 . . . . . . . . Insert Component 1 | . . . . . . . 1 . . . . . . . . Analyze 1 | . . . . . . . 1 . . . . . . . . Garrison Access Hacks 5 | . . . . . 1 . 1 . . . 1 . 2 . . Unlock Access 5 | . . . . . 1 . 1 . . . 1 . 2 . . Unauthorized Hacks 9 | . 3 . . . . . 2 . . . . . 2 . 2 Terminals 3 | . 3 . . . . . . . . . . . . . . Botnet 2 | . 2 . . . . . . . . . . . . . . Operators 1 | . 1 . . . . . . . . . . . . . . Fabricators 4 | . . . . . . . . . . . . . 2 . 2 Liberate 1 | . . . . . . . . . . . . . . . 1 Fabnet 1 | . . . . . . . . . . . . . 1 . . Haulers 1 | . . . . . . . . . . . . . . . 1 Recompile 1 | . . . . . . . . . . . . . 1 . . Repair Stations . | . . . . . . . . . . . . . . . . Recycling Units . | . . . . . . . . . . . . . . . . Scanalyzers 1 | . . . . . . . 1 . . . . . . . . Extract 1 | . . . . . . . 1 . . . . . . . . Garrison Access 1 | . . . . . . . 1 . . . . . . . . Broadcast 1 | . . . . . . . 1 . . . . . . . . Data Cores Recovered . | . . . . . . . . . . . . . . . . Used . | . . . . . . . . . . . . . . . . Hacking Detections 30 | . 5 . . . 1 3 5 4 . . . 2 5 2 3 Full Trace Events 10 | . . . . . . 2 3 2 . . . 1 2 . . Feedback Events 2 | . . . . . . . . 1 . . . 1 . . . Corruption 2 | . . . . . . . . 1 . . . 1 . . . Feedback Blocked . | . . . . . . . . . . . . . . . . Robot Schematics Acquired . | . . . . . . . . . . . . . . . . Robots Built . | . . . . . . . . . . . . . . . . Authchips . | . . . . . . . . . . . . . . . . Time . | . . . . . . . . . . . . . . . . Total Robot Build Rating . | . . . . . . . . . . . . . . . . Part Schematics Acquired 10 | . . . . . . . 10 . . . . . . . . Parts Built . | . . . . . . . . . . . . . . . . Authchips . | . . . . . . . . . . . . . . . . Time . | . . . . . . . . . . . . . . . . Total Part Build Rating . | . . . . . . . . . . . . . . . . Parts Repaired 1 | . . . . . . . 1 . . . . . . . . Time 26 | . . . . . . . 26 . . . . . . . . Parts Recycled . | . . . . . . . . . . . . . . . . Recycled Matter 9 | . 9 . . . . . . . . . . . . . . Retrieved Matter 9 | . 9 . . . . . . . . . . . . . . Retrieved Components 6 | . . . . . . . . . . . . . 6 . . Parts Scanalyzed 1 | . . . . . . . 1 . . . . . . . . Part Schematics Acquired 1 | . . . . . . . 1 . . . . . . . . Parts Damaged . | . . . . . . . . . . . . . . . . Bothacking | -11 -10 -10 -10 -9 -8 -8 -8 -8 -7 -7 -7 -7 -6 -6 -6 ------------ Run | Yrd Mat Min Exi Min Mat Gar Mat Gar Fac Was Fac Gar Fac Gar Fac Used RIF Installer 4 | . . . . . . 2 . 1 . . . 1 . . . Threat Obfuscator 1 | . . . . . . . . . . . . 1 . . . Robot Detection 1 | . . . . . . . . 1 . . . . . . . Structural Interface 1 | . . . . . . 1 . . . . . . . . . Robots Hacked 19 | . . . . . . . . . . . 3 5 2 5 4 Non-combat 2 | . . . . . . . . . . . . . 2 . . Combat 17 | . . . . . . . . . . . 3 5 . 5 4 Robot Hacks Applied 26 | . . . . . . . . . . . 8 6 2 6 4 map_route 1 | . . . . . . . . . . . . . 1 . . find_shortcuts 2 | . . . . . . . . . . . 1 . . 1 . show_paths 2 | . . . . . . . . . . . 1 . . 1 . scatter_targeting 1 | . . . . . . . . . . . 1 . . . . mark_system 1 | . . . . . . . . . . . 1 . . . . spike_heat 4 | . . . . . . . . . . . 2 . . 2 . overload_power 2 | . . . . . . . . . . . . . 1 . 1 amplify_resonance 2 | . . . . . . . . . . . . 1 . 1 . reboot_system 2 | . . . . . . . . . . . . 2 . . . overwrite_iff 3 | . . . . . . . . . . . 1 1 . . 1 formatsys_high 6 | . . . . . . . . . . . 1 2 . 1 2 Relay Couplers Released 58 | . . . . . . 18 . 16 . . . 21 . 3 . Machine Destruction 58 | . . . . . . 18 . 16 . . . 21 . 3 . Attached 14 | . . . . . . . . . . 1 . 10 . . 3 Fabnet Peak Effective % . | . . . . . . . . . . . . . . . . Robots Rewired 6 | . . . . . . . . 2 . . . . . 4 . Allies Hacked 1 | . . . . . . . . . . . . . . . 1 Hacks Repelled . | . . . . . . . . . . . . . . . . Allies | -11 -10 -10 -10 -9 -8 -8 -8 -8 -7 -7 -7 -7 -6 -6 -6 -------- Run | Yrd Mat Min Exi Min Mat Gar Mat Gar Fac Was Fac Gar Fac Gar Fac Total Allies 21 | . . . . . . 1 . 3 . . 2 5 . 7 3 Largest Group 5 | . . . . . . 1 . 2 1 1 2 4 4 5 5 Highest-Rated Group 264 | . . . . . . 31 . 50 25 25 32 109 109 264 264 Highest-Rated Ally 85 | . . . . . . 31 . 25 25 25 16 32 32 85 80 Total Orders . | . . . . . . . . . . . . . . . . Ally Attacks 204 | . . . . . . 8 . 6 . 1 9 8 17 76 79 Total Damage 4898 | . . . . . . 84 . 106 . 19 119 473 536 2031 1530 Kills 39 | . . . . . . . . 2 . . 1 2 4 15 15 Allies Corrupted . | . . . . . . . . . . . . . . . . Allies Melted 2 | . . . . . . . . 1 . . . . 1 . . Intel | -11 -10 -10 -10 -9 -8 -8 -8 -8 -7 -7 -7 -7 -6 -6 -6 ------- Run | Yrd Mat Min Exi Min Mat Gar Mat Gar Fac Was Fac Gar Fac Gar Fac Robot Analysis Total . | . . . . . . . . . . . . . . . . Derelict Logs Recovered 2 | . . . . 2 . . . . . . . . . . . Drone Launches 2 | . . . . . . . . 2 . . . . . . . Drone Recoveries 2 | . . . . . . . . 2 . . . . . . . Exploration | -11 -10 -10 -10 -9 -8 -8 -8 -8 -7 -7 -7 -7 -6 -6 -6 ------------- Run | Yrd Mat Min Exi Min Mat Gar Mat Gar Fac Was Fac Gar Fac Gar Fac Turns Passed 9921 | . 590 198 311 123 146 1524 1013 1212 87 123 293 1191 1211 757 1142 Spaces Moved 5717 | 1 444 203 319 101 81 834 549 537 42 126 227 961 659 276 357 Core 193 | . . . . . . . . . . 57 119 2 . . 15 Treads 333 | . . . . . . . . . . . . . . 56 277 Legs 1738 | 1 150 . . . . . 190 537 42 69 108 472 104 . 65 Wheels 2966 | . 294 203 319 101 81 834 359 . . . . . 555 220 . Hover 246 | . . . . . . . . . . . . 246 . . . Flight 241 | . . . . . . . . . . . . 241 . . . Fastest Speed 29 | 120 80 95 80 110 125 110 120 190 190 50 50 29 116 150 50 Average Speed 137 | 120 103 95 93 110 132 141 149 190 190 92 83 90 148 205 252 Slowest Speed 330 | 120 120 95 110 110 170 170 330 190 190 190 126 200 260 270 330 Overloaded Moves . | . . . . . . . . . . . . . . . . Propulsion Burnouts . | . . . . . . . . . . . . . . . . Robots Hopped . | . . . . . . . . . . . . . . . . Cave-ins Triggered 1 | . . . . . 1 . . . . . . . . . . Exploration Rate (%) 44 | 2 73 43 62 36 8 90 34 88 2 73 6 97 23 53 16 Regions Visited 15 Branch Regions 3 Pre-discovered Areas 1 | . . . 1 . . . . . . . . . . . . Known Exits Taken 4 | . . . . . 1 . 1 . . . 1 . 1 . . Unknown Exits Taken 5 | 1 1 1 1 1 . . . . . . . . . . . Scrap Searched 2 | . . 1 . 1 . . . . . . . . . . . Spaces Dug 4 | . . . . . . . . . . . . . 4 . . Terrain Destroyed 516 | . 180 . . 17 70 47 . 51 . . . 95 8 . 48 Melee . | . . . . . . . . . . . . . . . . Projectile 21 | . . . . . . . . . . . . . 7 . 14 AOE 494 | . 180 . . 17 70 47 . 51 . . . 95 . . 34 Terrain Rammed . | . . . . . . . . . . . . . . . . Walls Destroyed . | . . . . . . . . . . . . . . . . Machines Disabled . | . . . . . . . . . . . . . . . . Actions | -11 -10 -10 -10 -9 -8 -8 -8 -8 -7 -7 -7 -7 -6 -6 -6 --------- Run | Yrd Mat Min Exi Min Mat Gar Mat Gar Fac Was Fac Gar Fac Gar Fac Total 7102 | . 520 207 334 107 104 1059 714 650 50 135 305 1218 805 410 484 Wait 357 | . 6 1 . . 1 18 107 29 2 . 29 89 13 43 19 Move 5705 | . 443 202 318 100 81 832 548 536 42 125 227 960 659 275 357 Hop . | . . . . . . . . . . . . . . . . Pick Up 104 | . 13 1 4 . 8 20 3 3 2 . . 4 33 7 6 Fast Attach 73 | . 5 . . . . 8 8 1 . 1 10 20 7 8 5 Attach 54 | . 4 . 2 . 5 11 . 1 2 1 2 9 1 4 12 Detach 38 | . 1 . 2 . . 7 2 1 . 3 3 9 1 3 6 Swap 121 | . 4 2 2 4 3 6 19 3 2 . 5 18 27 11 15 Drop 117 | . 12 1 6 . . 17 14 4 . 4 4 19 21 10 5 Fire 341 | . 31 . . 3 6 66 12 36 . . 12 46 42 31 56 Melee 16 | . . . . . . . . . . . 12 4 . . . Ram 2 | . 1 . . . . . . . . . . . 1 . . Kick . | . . . . . . . . . . . . . . . . Crush 2 | . . . . . . . . . . . . . . . 2 Escape Stasis 130 | . . . . . . 71 . 15 . . . 37 . 7 . Rewire 37 | . . . . . . 1 . 21 . . 1 2 . 11 1 Trap 5 | . . . . . . 2 1 . . 1 . 1 . . . Miscellaneous . | . . . . . . . . . . . . . . . . Route ------- -11/Scrapyard -10/Materials (discovered 4 exits: [*Mat x2] / *Min x2) -10/Mines (discovered 2 exits: [*Mat] / *Exi) -10/Exiles (discovered 2 exits: [*Min x2]) -9/Mines -8/Materials -8/Garrison (discovered 3 exits: *Mat x3) -8/Materials (discovered 2 exits: *Fac / Gar) -8/Garrison (discovered 3 exits: *Fac x3) -7/Factory -7/Waste -7/Factory -7/Garrison (discovered 3 exits: *Fac x3) -6/Factory (discovered 7 exits: [Fac] / Low x2 / Ext x2 / Gar / Gar) -6/Garrison -6/Factory History --------- Turn | Location | Event 1 | -11/Scrapyard | Discovered new exit (range 0) 1 | -11/Scrapyard | Entered Materials 117 | -10/Materials | Discovered new exit (range 16) 190 | -10/Materials | Discovered new exit (range 9) 312 | -10/Materials | Build established: Mutant 393 | -10/Materials | Discovered new exit (range 12) 481 | -10/Materials | Discovered new exit (range 16) 591 | -10/Materials | Entered Mines 642 | -10/Mines | Discovered new exit (range 8) 718 | -10/Mines | Found the Drone Emporium 722 | -10/Mines | Found Prototype Device 722 | -10/Mines | Identified Splice Drone Bay 784 | -10/Mines | Deemed a non-threat by the Exiles lab entrance 785 | -10/Mines | Discovered new exit (range 5) 789 | -10/Mines | Entered Exiles 805 | -10/Exiles | Discovered new exit (range 15) 815 | -10/Exiles | Met 8R-AWN 827 | -10/Exiles | Met EX-HEX 847 | -10/Exiles | Met EX-BIN 859 | -10/Exiles | Aligned with FarCom system 859 | -10/Exiles | Given EX-Vault access code 880 | -10/Exiles | Opened EX-Vault 891 | -10/Exiles | Found YOLO Cannon 895 | -10/Exiles | Found Gui. Plasma Cannon 899 | -10/Exiles | Found AWS/Thermal 920 | -10/Exiles | Warned to stay clear of 0b10 Research branches 952 | -10/Exiles | Met EX-DEC 957 | -10/Exiles | Learned location of Zion (-7) 1085 | -10/Exiles | Discovered new exit (range 14) 1100 | -10/Exiles | Stole three prototypes: AWS/Thermal, Gui. Plasma Cannon, YOLO Cannon 1100 | -10/Exiles | Entered Mines 1109 | -9/Mines | Learned Materials garrison access intel 1178 | -9/Mines | Learned Materials stockpile data 1212 | -9/Mines | Discovered new exit (range 8) 1223 | -9/Mines | Entered Materials 1223 | -8/Materials | Evolved 4 slots: Utility x2, Weapon x2 1225 | -8/Materials | Loaded intel: 1 garrison access location 1358 | -8/Materials | Crushed by falling debris 1369 | -8/Materials | Identified exit to Garrison 1369 | -8/Materials | Entered Garrison 1428 | -8/Garrison | Lost 7 parts (1n3u3w) 1430 | -8/Garrison | Installed Relay Interface Framework 1476 | -8/Garrison | Triggered checkpoint 1556 | -8/Garrison | Garrison Relay disabled 1597 | -8/Garrison | Expanded RIF knowledge: Structural Interface 1655 | -8/Garrison | Triggered checkpoint 1727 | -8/Garrison | Triggered checkpoint 1781 | -8/Garrison | Garrison Relay disabled 1887 | -8/Garrison | Discovered new exit (range 12) 1952 | -8/Garrison | Build established: Scavenger-Tank 2112 | -8/Garrison | Garrison Relay disabled 2164 | -8/Garrison | Discovered new exit (range 15) 2195 | -8/Garrison | Rescued a captive Derelict 2265 | -8/Garrison | Triggered checkpoint 2304 | -8/Garrison | Build established: Scavenger-Skirmisher 2313 | -8/Garrison | Triggered checkpoint 2350 | -8/Garrison | Destroyed 9 combat bots 2715 | -8/Garrison | Triggered checkpoint 2744 | -8/Garrison | Garrison Relay disabled 2834 | -8/Garrison | Discovered new exit (range 15) 2893 | -8/Garrison | Entered Materials 3079 | -8/Materials | Identified exit to Garrison 3258 | -8/Materials | Repaired Wheel 3488 | -8/Materials | Discovered new exit (range 5) 3778 | -8/Materials | Build established: Trapper-Skirmisher 3906 | -8/Materials | Entered Garrison 4020 | -8/Garrison | Triggered checkpoint 4039 | -8/Garrison | Garrison Relay disabled 4234 | -8/Garrison | Core integrity fell below 50% 4279 | -8/Garrison | Garrison Relay disabled 4340 | -8/Garrison | Phase Generator disabled 4489 | -8/Garrison | Discovered new exit (range 12) 4499 | -8/Garrison | Discovered new exit (range 16) 4499 | -8/Garrison | Discovered new exit (range 61) 4499 | -8/Garrison | Discovered new exit (range 41) 4530 | -8/Garrison | Triggered checkpoint 4560 | -8/Garrison | Garrison Relay disabled 4590 | -8/Garrison | Core integrity fell below 20% 4760 | -8/Garrison | Triggered checkpoint 4895 | -8/Garrison | Expanded RIF knowledge: Robot Detection 5036 | -8/Garrison | Garrison Relay disabled 5116 | -8/Garrison | Identified exit to Factory 5118 | -8/Garrison | Entered Factory 5118 | -7/Factory | Accompanied by 1 ally 5118 | -7/Factory | Evolved 2 slots: Propulsion x1, Utility x1 5120 | -7/Factory | FarCom data flow suspended 5205 | -7/Factory | Sucked down chute 5205 | -7/Factory | Entered Waste 5221 | -7/Waste | Spotted C-40 Crusher 5221 | -7/Waste | Spotted C-40 Crusher 5225 | -7/Waste | Spotted C-40 Crusher 5266 | -7/Waste | Spotted C-40 Crusher 5275 | -7/Waste | 1 allies followed down the chute 5276 | -7/Waste | Spotted C-40 Crusher 5277 | -7/Waste | Spotted C-40 Crusher 5282 | -7/Waste | Crushed by Compactor (1 part destroyed, 2 dropped) 5320 | -7/Waste | Discovered new exit (range 15) 5328 | -7/Waste | Identified exit to Factory 5328 | -7/Waste | Entered Factory 5513 | -7/Factory | Garrison activated, responded to threat 5621 | -7/Factory | Identified exit to Garrison 5621 | -7/Factory | Entered Garrison 5747 | -7/Garrison | Triggered checkpoint 5764 | -7/Garrison | Garrison Relay disabled 5829 | -7/Garrison | Triggered checkpoint 5851 | -7/Garrison | Triggered checkpoint 5926 | -7/Garrison | Lost 7 parts (1p3n2u1w) 5949 | -7/Garrison | Core integrity fell below 50% 5993 | -7/Garrison | Triggered checkpoint 5995 | -7/Garrison | Phase Generator disabled 6015 | -7/Garrison | Discovered new exit (range 13) 6099 | -7/Garrison | Garrison Relay disabled 6133 | -7/Garrison | Rescued a captive Derelict 6136 | -7/Garrison | Rescued a captive Derelict 6234 | -7/Garrison | Discovered new exit (range 9) 6261 | -7/Garrison | Triggered checkpoint 6379 | -7/Garrison | Triggered checkpoint 6419 | -7/Garrison | Build established: Bothacker-Mutant 6425 | -7/Garrison | Garrison Relay disabled 6455 | -7/Garrison | Garrison Relay disabled 6673 | -7/Garrison | Triggered checkpoint 6702 | -7/Garrison | Garrison Relay disabled 6732 | -7/Garrison | Discovered new exit (range 14) 6756 | -7/Garrison | Expanded RIF knowledge: Threat Obfuscation 6769 | -7/Garrison | Build established: Bothacker-Gunner 6812 | -7/Garrison | Entered Factory 6812 | -6/Factory | Accompanied by 4 allies 6812 | -6/Factory | Evolved 2 slots: Utility x2 7015 | -6/Factory | Garrison activated, responded to threat 7133 | -6/Factory | Identified exit to Garrison 7191 | -6/Factory | Discovered new exit (range 112) 7265 | -6/Factory | Build established: Bothacker-Tank 7420 | -6/Factory | Identified exit to Lower Caves 7420 | -6/Factory | Identified exit to Extension 7429 | -6/Factory | Lost 3 allies 7574 | -6/Factory | Build established: Bothacker-Gunner 8023 | -6/Factory | Identified exit to Garrison 8023 | -6/Factory | Entered Garrison 8057 | -6/Garrison | Triggered checkpoint 8098 | -6/Garrison | Spotted B-86 Titan 8105 | -6/Garrison | Rewired B-75 Beast 8113 | -6/Garrison | Allies destroyed B-86 Titan 8134 | -6/Garrison | Build established: Bothacker-Skirmisher 8244 | -6/Garrison | Rescued a captive Derelict 8246 | -6/Garrison | Rescued a captive Derelict 8455 | -6/Garrison | Triggered checkpoint 8487 | -6/Garrison | Triggered checkpoint 8489 | -6/Garrison | Triggered checkpoint 8507 | -6/Garrison | Triggered checkpoint 8550 | -6/Garrison | Triggered checkpoint 8690 | -6/Garrison | Garrison Relay disabled 8731 | -6/Garrison | Triggered checkpoint 8751 | -6/Garrison | Discovered new exit (range 3) 8780 | -6/Garrison | Entered Factory 8780 | -6/Factory | Accompanied by 5 allies 8999 | -6/Factory | Build established: Bothacker-Tank 9000 | -6/Factory | P-60 Hacker assimilated allied Disruptor 5a 9432 | -6/Factory | Spotted B-75 Beast 9438 | -6/Factory | Destroyed B-75 Beast 9480 | -6/Factory | First assault squad dispatched 9632 | -6/Factory | Core integrity fell below 50% 9660 | -6/Factory | Destroyed 7 combat bots 9685 | -6/Factory | Lost 12 parts (2p3n3u4w) 9914 | -6/Factory | Core integrity fell below 20% 9922 | -6/Factory | Destroyed by Y-54 Guardian via exploding Power Conduit Last Messages --------------- 09845_ Acquired Fusion Compressor. 09861_ Acquired Thermic Laser. 09869_ System corrupted: Energy discharge (-25). 09900_ MTO1OL#IDVDH TSSZX&6LCY5 09902_ C-30 ARC bursts open, deploying its payload. 09902_ G-67 Veteran unfolds itself. 09902_ L-41 Fighter unfolds itself. 09909_ Relay Coupler [Sentry] destroyed. 09909_ Flexi-carbon Leg destroyed. 09910_ Fusion Compressor blown off. 09910_ Com. HERF Cannon blown off. 09910_ Relay Coupler [Heavy] blown off. 09910_ Gravity Neutralizer blown off. 09910_ E-15 Imp destroyed. 09916_ Dropped Huge Storage Unit. 09916_ Acquired 15 matter. 09917_ System corrupted: Energy discharge (-4). 09922_ Power Conduit explodes. 09922_ S-27 Virus destroyed. 09922_ Power Conduit explodes. Map ----- +----------------------------------------------------+ | | | | | | | | | | | | | | | ?????????????????????????????????????????? | | ?????????????????????????????????????????? | | ?????????????????????????????????????????? | | ?????????????????????????????????????????? | | ?????????????????????????????????????????? | | ???????????????? ???????????????????????? | | ????????????? """ ??????????????????????? | | ????????????? "" ????????????????????? | | ????????????? ????????????????????? | | ???????###????? ??????????###+###???? | | ???????# ????? ??######## #??? | | ???????# ????? ??# ] #??? | | ????"??# #######+#### ??? | | ???? # ^ u ??? | | ?????" /k !! ????? | | ???????# % !!!!! ??????? | | ????????# !]!#???????????? | | ????????# =% b l!]*#???????????? | | ????????# @ % l= !#???????????? | | ????# [!!#???????????? | | ????# g!#???????????? | | ????# #???????????? | | ????# ##"" ""# % #???????????? | | ????# ???#""T""# ####+#########?????? | | ????#?????# """ # # " !!#?????? | | ??????????#####?# # ! """ *!!#?????? | | ????????????????# + """ !!!#?????? | | ????????????????# # * """ #?????? | | ????????????????# # #?????? | | ????????????????# ##############?????? | | ????????###########+######???????????????? | | ????????# #???????????????? | | ????????# #???????????????? | | ????????# #???????????????? | | ????????# #???????????????? | | ????????# #???????????????? | | ????????# #???????????????? | | ???????#" #???????????????? | | ???????## #???????????????? | | ????????#=% #???????????????? | | ????????##+[#######+######???????????????? | | ?????????#!#??????? ????????????????????? | | ?????????# #??????? ????????????????????? | +----------------------------------------------------+ Best States ------------- Heat Dissipation 99 Energy Generation 25 Energy Capacity 690 Matter Stores 510 Matter Capacity 550 Sight Range 16 Robot Scan Range 15 Terrain Scan Range 16 Terrain Scan Density 10 Additional Mass Support 12 Armor Coverage 375 Resistance: TH 20 Resistance: EM 15 Weapon Shielding 66 Evasion (%) 63 Targeting Accuracy 6 Target Analysis 5 Recoil Reduction 3 Offensive Hacking 12 Defensive Hacking 10 Relay Coupler Types 4 Relay Coupler Value 94 Authchip Count 5 Trap Extractor Capacity 4 Item Schematics ----------------- Plasma Cutter | -8/Materials | Scanalyzed Deuterium Engine | -8/Materials | Extracted Com. Battery | -8/Materials | Extracted Welding Torch | -8/Materials | Extracted Hardlight Generator | -8/Materials | Extracted Enh. Autogun | -8/Materials | Extracted Hvy. Assault Rifle | -8/Materials | Extracted VTOL Module | -8/Materials | Extracted Lgt. Nuclear Core | -8/Materials | Extracted Cesium-ion Thruster | -8/Materials | Extracted Robot Schematics ------------------ None Fabricated ------------ Nothing Alien Tech Used ----------------- None Achievements -------------- None Challenges ------------ None Game ------ Seed GuidedDeliveryAutogun Manual? 0 Play Time 01:06:58 Cumulative 916.9 hours Start 2024.09.03 @ 13:50:59 End 2024.09.03 @ 15:00:16 Sessions 1 Manual Loads 0 Difficulty Rogue Special Mode None Game No. 1107 Rogue 827 Adventurer 124 Explorer 156 Win Type - Total 39 Types 28/0/8/1/1/0/0/1/0 Lore% 79 Gallery% 90 Achievement% 78 Wizard Run 0 Options --------- Layout 0 ASCII 0 Keyboard 1 Movement Numpad Keybinds 0 Fullscreen 2 Font 18/X11 Map View 76x50 Zoom Use 0% Tactical HUD 1 Map Filters NONE Filters NONE Steam 1 RUN: 498b8f4b-e78f-49b8-ae55-24dac9da27d9